bitfinex-derivatives/quotes_ETHF0:USTF0_20260312
["timestamp","ask_amount","ask_price","bid_price","bid_amount"]
[1773323343768,0.78038972,2063.8,2062.8,1.16392385]
[1773323344171,0.78038972,2063.8,2062.9,1.16392385]
[1773323344463,1.05212802,2064.6,2063.2,1.40622385]
[1773323344669,1.05212802,2064.6,2063.4,1.16392385]
[1773323344861,1.02845588,2065.0,2063.6,5.95956]
[1773323345067,1.02845588,2065.5,2064.1,1.40611385]
[1773323345267,3.14817871,2065.3,2064.3,1.16392385]
[1773323345471,0.00615242,2065.3,2064.3,1.1692312]
[1773323345670,3.15434686,2065.3,2064.4,1.16392385]
[1773323345868,0.00615242,2065.3,2064.4,1.16392385]
[1773323346072,1.27144339,2065.9,2064.4,1.16392385]
[1773323346371,1.02945339,2065.3,2064.5,8.13992385]
[1773323346572,1.02945339,2065.3,2064.6,1.16392385]
[1773323346769,1.0276607,2065.3,2064.3,1.1692312]
[1773323346967,1.03122351,2065.3,2064.3,1.1692312]
[1773323347272,2.11972283,2065.7,2064.9,1.16392385]
[1773323347671,1.0276607,2065.8,2064.9,1.16392385]
[1773323347867,3.14738353,2065.8,2064.9,1.16392385]
[1773323348274,3.15346822,2065.8,2064.9,1.16392385]
[1773323348466,1.02863848,2065.7,2064.9,1.16392385]
[1773323348870,2.11972283,2065.5,2064.9,1.16392385]
[1773323349074,1.09225099,2065.4,2064.5,1.16392385]
[1773323349475,2.11972283,2065.5,2064.5,1.16392385]
[1773323349671,0.24202,2065.6,2064.6,1.16392385]
[1773323349866,1.09225099,2065.7,2064.6,1.16392385]
[1773323350075,1.09225099,2065.7,2064.7,1.16392385]
[1773323350278,1.09225099,2065.4,2064.7,1.16392385]
[1773323350771,1.09225099,2065.1,2064.4,1.16392385]
[1773323350977,1.09225099,2065.3,2064.4,1.16392385]
[1773323351176,1.09225099,2065.5,2064.4,1.16392385]
[1773323351376,2.12580752,2065.8,2064.4,1.16392385]
[1773323351573,1.09225099,2065.7,2064.4,1.16392385]
[1773323351772,2.11972283,2065.5,2064.6,1.16392385]
[1773323351973,1.09225099,2065.4,2064.6,1.16392385]
[1773323352174,1.09225099,2065.7,2064.6,1.16392385]
[1773323352370,0.00608469,2065.8,2065.0,3.28364668]
[1773323352574,1.09225099,2066.2,2065.2,1.16392385]
[1773323353079,1.09225099,2065.7,2064.9,1.16392385]
[1773323353778,1.09225099,2065.4,2064.7,1.16392385]
[1773323354674,1.09225099,2065.6,2064.7,1.16392385]
[1773323355579,0.00439758,2065.7,2064.7,1.16392385]
[1773323355778,1.09664857,2065.7,2064.7,1.16392385]
[1773323355977,1.33865857,2065.7,2064.7,1.16392385]
[1773323357080,0.00439758,2065.7,2064.7,1.16392385]
[1773323357778,1.09664857,2065.7,2064.8,1.16392385]
[1773323357978,12.92552,2066.8,2065.2,1.16392385]
[1773323357979,8.06725099,2066.8,2065.2,1.16392385]
[1773323358283,1.09225099,2067.4,2066.0,1.16392385]
[1773323358482,1.09225099,2067.2,2066.2,1.16392385]
[1773323358679,1.09225099,2067.2,2066.1,1.16392385]
[1773323358980,1.09225099,2067.1,2066.2,1.16392385]
[1773323359579,0.00609051,2067.2,2066.2,1.16392385]
[1773323359783,1.0983415,2067.2,2066.2,1.16392385]
[1773323360282,1.0983415,2067.2,2066.4,1.08256867]
[1773323360786,3.29096734,2066.9,2066.1,0.00477881]
[1773323360980,1.17124451,2066.8,2065.7,1.08256867]
[1773323361784,1.17124451,2066.5,2065.2,1.08256867]
[1773323361980,1.17124451,2066.3,2065.2,1.08779921]
[1773323362281,1.17124451,2066.2,2065.2,1.08779921]
[1773323363083,1.17124451,2066.5,2065.2,1.08779921]
[1773323363582,1.17124451,2066.5,2065.4,1.08256867]
[1773323364184,1.41316451,2066.5,2065.4,1.08256867]
[1773323364785,1.41316451,2066.5,2065.2,0.00523054]
[1773323364786,1.17124451,2066.2,2065.2,0.00523054]
[1773323365474,1.17124451,2066.0,2065.2,0.00523054]
[1773323365880,1.17124451,2066.0,2064.9,1.08256867]
[1773323366779,1.17124451,2066.0,2064.6,1.08256867]
[1773323366986,1.17124451,2065.6,2064.9,0.00476558]
[1773323367178,1.17478656,2065.6,2064.3,6.975]
[1773323367375,1.17124451,2065.3,2064.3,1.08256867]
[1773323368278,0.00354205,2065.6,2064.5,1.08256867]
[1773323368677,1.17124451,2066.0,2064.9,1.08256867]
[1773323369784,1.17666652,2066.0,2064.9,1.08256867]
[1773323370485,1.17124451,2065.8,2064.9,1.08256867]
[1773323370786,1.17124451,2065.8,2064.5,1.08256867]
[1773323371187,1.17124451,2065.8,2064.6,1.08256867]
[1773323371692,1.41322451,2065.9,2064.6,1.08256867]
[1773323372186,1.41322451,2065.9,2064.8,1.08256867]
[1773323372683,1.41322451,2065.9,2064.8,8.05856867]
[1773323372888,1.41322451,2065.9,2064.9,1.08256867]
[1773323373984,1.41322451,2065.9,2064.7,1.08256867]
[1773323374388,1.17124451,2065.6,2064.7,1.08256867]
[1773323374591,1.17124451,2065.5,2064.4,1.08256867]
[1773323374790,1.41327451,2065.5,2064.4,1.08256867]
[1773323375287,1.17124451,2065.0,2064.3,0.00046994]
[1773323375491,1.17124451,2064.8,2064.3,0.00046994]
[1773323375689,1.17124451,2064.8,2063.9,1.08256867]
[1773323375990,1.41334451,2064.9,2063.9,1.08256867]
[1773323376590,1.41334451,2064.9,2063.9,1.08726108]
[1773323377789,1.41334451,2064.9,2063.9,0.00469241]
[1773323377997,1.17124451,2064.4,2063.9,0.00469241]
[1773323378292,1.17615861,2064.4,2063.5,1.08256867]
[1773323379297,1.17615861,2064.4,2063.5,1.08772899]
[1773323382494,0.0049141,2064.4,2063.5,1.32998899]
[1773323382899,1.41333451,2065.0,2063.5,1.32998899]
[1773323383202,6.979,2065.3,2064.2,1.37729687]
[1773323383203,1.17142463,2065.3,2064.2,1.37729687]
[1773323383400,1.17142463,2065.9,2064.6,1.37792687]
[1773323383600,1.17142463,2065.9,2064.6,1.37626687]
[1773323383906,1.17601487,2065.9,2064.8,1.13208687]
[1773323384104,1.17142463,2065.7,2064.8,1.13208687]
[1773323384403,1.17142463,2065.7,2064.5,1.13208687]
[1773323384804,1.17142463,2065.5,2064.5,1.13208687]
[1773323385499,0.00459024,2065.9,2064.5,1.13208687]
[1773323385700,1.17142463,2065.8,2064.5,1.13208687]
[1773323385900,0.00459024,2065.9,2064.7,1.13208687]
[1773323386198,1.17601487,2065.9,2064.7,1.13208687]
[1773323386403,1.41342463,2065.8,2064.7,1.13208687]
[1773323386704,1.17142463,2065.8,2064.7,1.13208687]
[1773323388806,0.00459024,2065.9,2064.9,1.13208687]
[1773323389112,0.00459024,2065.9,2065.1,1.13208687]
[1773323389405,0.00459024,2065.9,2065.1,1.13808424]
[1773323390199,0.00459024,2065.9,2065.1,1.38013424]
[1773323390403,1.17142463,2066.2,2065.1,1.38339424]
[1773323390598,1.17142463,2066.2,2065.1,1.13808424]
[1773323390904,6.979,2066.8,2065.1,1.38765424]
[1773323390905,1.13036055,2066.7,2065.1,1.38765424]
[1773323391105,1.13036055,2066.5,2065.1,1.13808424]
[1773323391303,1.13036055,2066.3,2065.1,1.13808424]
[1773323391502,1.13036055,2066.1,2065.1,1.13808424]
[1773323392110,1.13627513,2066.3,2065.1,1.13808424]
[1773323394611,1.37822513,2066.3,2065.1,1.13808424]
[1773323394810,1.13036055,2066.2,2065.1,1.13808424]
[1773323396110,0.00591458,2066.3,2065.3,1.16798931]
[1773323396312,1.13036055,2067.0,2065.7,1.16798931]
[1773323397311,1.13539199,2067.0,2065.7,1.16798931]
[1773323397814,0.00503144,2067.0,2065.9,1.16798931]
[1773323398814,1.13539199,2067.0,2065.9,1.16798931]
[1773323399016,1.13036055,2066.8,2065.9,1.16798931]
[1773323399216,1.13036055,2066.9,2065.9,1.16798931]
[1773323399519,0.00503144,2067.0,2065.9,1.16798931]
[1773323400116,0.00503144,2067.0,2066.0,0.24197]
[1773323400318,1.13539199,2067.0,2066.1,1.16798931]
[1773323400822,0.00503144,2067.0,2066.1,1.16798931]
[1773323401116,1.13036055,2067.3,2066.1,1.16798931]
[1773323401317,7.21776,2067.8,2066.1,1.16798931]
[1773323401318,1.31407042,2067.9,2066.7,1.16798931]
[1773323401522,1.31407042,2067.9,2066.9,1.16798931]
[1773323401825,1.13036055,2067.8,2066.7,1.16798931]
[1773323402011,1.13036055,2067.8,2066.7,1.17288456]
[1773323402215,1.13587518,2067.8,2066.7,1.17288456]
[1773323402514,0.00551463,2067.8,2066.7,1.17288456]
[1773323402715,0.00551463,2067.8,2066.7,1.41476456]
[1773323403113,1.13036055,2068.3,2066.9,1.16798931]
[1773323404111,1.13519515,2068.3,2066.9,1.16798931]
[1773323404316,1.13036055,2068.2,2066.9,1.16798931]
[1773323404912,0.24173,2068.1,2066.9,1.16798931]
[1773323405114,1.13036055,2068.0,2066.9,1.16798931]
[1773323405322,1.13519515,2068.3,2066.9,1.16798931]
[1773323405919,0.0048346,2068.3,2067.3,1.16798931]
[1773323406119,1.89971438,2068.8,2067.7,1.16798931]
[1773323406521,1.13036055,2069.4,2068.1,1.16798931]
[1773323406821,1.13036055,2070.2,2068.5,1.16798931]
[1773323407018,1.13541303,2070.2,2068.7,1.16798931]
[1773323407219,1.37689303,2070.2,2068.7,1.16798931]
[1773323407416,1.13036055,2070.0,2068.9,1.16798931]
[1773323408018,1.13541303,2070.2,2068.9,1.16798931]
[1773323408214,0.00505248,2070.2,2068.9,1.16798931]
[1773323408519,1.13541303,2070.2,2069.1,1.16798931]
[1773323408726,1.13036055,2070.6,2069.1,1.16798931]
[1773323408922,6.1789,2071.3,2069.1,1.16798931]
[1773323408923,1.13036055,2071.2,2069.3,1.16798931]
[1773323409224,1.13036055,2071.2,2069.5,1.16798931]
[1773323409529,1.13036055,2070.8,2069.7,1.16798931]
[1773323409825,1.134854,2070.8,2069.7,1.16798931]
[1773323410020,0.24142,2070.7,2069.7,1.16798931]
[1773323410225,1.13036055,2070.6,2069.1,1.16798931]
[1773323410722,0.24145,2070.5,2069.1,1.16798931]
[1773323410926,1.13036055,2070.4,2069.1,1.16798931]
[1773323411116,0.24145,2070.5,2069.1,1.16798931]
[1773323411117,1.13036055,2070.2,2069.1,1.16798931]
[1773323411923,6.971,2070.6,2068.9,1.16798931]
[1773323411924,1.13036055,2070.0,2068.9,1.16798931]
[1773323412326,1.13036055,2070.6,2068.9,1.16798931]
[1773323412727,1.13036055,2070.4,2068.9,1.16798931]
[1773323413121,1.13036055,2070.4,2069.3,1.16798931]
[1773323413321,1.13036055,2070.7,2069.3,1.16798931]
[1773323413523,0.00449345,2070.8,2069.7,1.16798931]
[1773323413830,1.13036055,2071.3,2069.7,1.16798931]
[1773323414128,1.13036055,2071.1,2069.7,1.16798931]
[1773323414732,1.13036055,2070.9,2069.7,1.16798931]
[1773323415029,1.13558133,2070.9,2069.7,1.16798931]
[1773323416231,1.13558133,2070.9,2069.1,1.16798931]
[1773323416433,1.13036055,2070.7,2069.1,1.16798931]
[1773323417725,0.00522078,2070.9,2069.5,1.16798931]
[1773323417924,0.00522078,2070.9,2070.1,1.16798931]
[1773323418124,0.00522078,2070.9,2070.1,1.17239959]
[1773323418733,1.13036055,2071.2,2070.1,1.17239959]
[1773323419035,1.13036055,2071.8,2070.1,1.17239959]
[1773323419327,1.13036055,2071.8,2070.5,1.16798931]
[1773323419633,1.27799547,2071.9,2070.7,1.16798931]
[1773323419930,1.28366309,2071.9,2070.7,1.16798931]
[1773323420129,2.41402364,2071.9,2070.7,1.16798931]
[1773323420532,0.00566762,2071.9,2070.9,1.09441641]
[1773323420731,1.17969126,2071.9,2070.9,1.09441641]
[1773323420933,0.00566762,2071.9,2070.9,1.09441641]
[1773323421437,1.17969126,2071.9,2070.4,1.09441641]
[1773323421638,0.00566762,2071.9,2070.6,1.09441641]
[1773323422035,0.00566762,2071.9,2071.0,1.09441641]
[1773323422235,1.41524364,2072.5,2071.2,1.09441641]
[1773323422435,1.17402364,2072.5,2071.2,1.09441641]
[1773323423138,1.17878813,2072.5,2071.2,1.09441641]
[1773323424131,1.17402364,2072.3,2070.8,6.963]
[1773323424331,1.17402364,2072.1,2070.9,1.09441641]
[1773323425037,1.17402364,2072.1,2071.0,1.09441641]
[1773323425933,0.00476449,2072.5,2070.4,1.09441641]
[1773323425934,1.17402364,2071.9,2070.4,1.09441641]
[1773323426136,1.17402364,2071.9,2070.5,1.09441641]
[1773323426534,1.17402364,2071.9,2070.7,1.09441641]
[1773323426931,1.17402364,2071.7,2070.7,1.09441641]
[1773323427137,1.17402364,2071.5,2070.4,1.09441641]
[1773323427539,1.17402364,2072.0,2070.6,1.09441641]
[1773323428043,1.17402364,2071.8,2070.2,1.09441641]
[1773323428539,1.17402364,2071.8,2070.4,1.09441641]
[1773323428738,1.17402364,2071.8,2070.6,1.09441641]
[1773323429135,1.17402364,2071.8,2070.8,1.09441641]
[1773323429342,1.17402364,2072.4,2071.0,1.09441641]
[1773323429542,1.17402364,2072.2,2070.7,1.09441641]
[1773323429738,1.17402364,2072.0,2070.7,1.09441641]
[1773323430343,1.17402364,2071.8,2070.7,1.09441641]
[1773323430545,0.24131,2071.7,2070.4,8.05441641]
[1773323430741,1.17402364,2071.6,2070.4,1.09441641]
[1773323430938,1.17402364,2071.6,2070.2,1.09441641]
[1773323431135,1.17402364,2071.2,2070.2,1.09441641]
[1773323431443,1.17402364,2071.7,2070.2,1.09441641]
[1773323431645,1.17402364,2071.7,2070.4,1.09441641]
[1773323431840,1.17402364,2071.7,2070.5,1.09441641]
[1773323432045,1.17402364,2071.7,2070.5,1.33586641]
[1773323433042,1.17402364,2072.2,2070.9,0.2414]
[1773323433246,1.17402364,2072.2,2071.0,1.09441641]
[1773323433750,1.17402364,2072.2,2071.2,1.09441641]
[1773323434141,1.17878813,2072.5,2071.4,1.09441641]
[1773323435947,0.00476449,2072.5,2071.4,1.09441641]
[1773323436148,0.00476449,2072.5,2071.6,1.09441641]
[1773323436449,0.00476449,2072.5,2071.6,1.09960683]
[1773323436645,1.17878813,2072.5,2071.6,1.09960683]
[1773323436946,1.17878813,2072.5,2071.6,0.00519042]
[1773323437955,1.17878813,2072.5,2071.6,1.09960683]
[1773323438154,1.17878813,2072.5,2071.6,0.00519042]
[1773323439050,1.17402364,2072.3,2070.6,1.09441641]
[1773323439248,1.17402364,2072.2,2070.9,1.33580641]
[1773323439448,1.17878813,2072.5,2070.9,1.33580641]
[1773323439952,1.17878813,2072.5,2071.0,6.958]
[1773323440152,1.17878813,2072.5,2071.1,1.09441641]
[1773323440554,1.17878813,2072.5,2071.3,1.33576641]
[1773323440855,3.30947784,2072.8,2072.1,1.09441641]
[1773323441151,1.17402364,2073.3,2072.3,1.09441641]
[1773323441352,1.41515364,2073.3,2071.8,1.09441641]
[1773323441551,1.41515364,2073.3,2072.0,1.09441641]
[1773323441947,1.17402364,2073.0,2071.8,1.09441641]
[1773323442250,1.17402364,2072.8,2071.8,1.09441641]
[1773323442753,0.24124,2072.3,2071.2,1.09441641]
[1773323442957,0.24124,2072.3,2070.7,1.18790896]
[1773323442958,5.9357,2071.9,2070.7,1.18790896]
[1773323443251,1.10770666,2071.4,2070.3,1.18790896]
[1773323443557,1.10770666,2071.2,2070.0,1.18790896]
[1773323443958,1.10770666,2071.2,2069.4,2.64282266]
[1773323443959,1.34908666,2071.1,2069.7,1.18790896]
[1773323444254,1.35353329,2071.1,2069.7,1.19189701]
[1773323444646,1.10770666,2071.0,2069.7,1.19189701]
[1773323449358,1.10770666,2071.0,2069.9,1.18790896]
[1773323452662,0.00444663,2071.1,2069.9,10.01355162]
[1773323452852,1.15207175,2071.1,2070.1,1.20467725]
[1773323453772,1.15207175,2071.1,2069.8,1.20467725]
[1773323453960,1.14762512,2070.9,2069.8,1.20467725]
[1773323454161,1.14762512,2070.5,2069.7,0.00398805]
[1773323454462,1.14762512,2070.5,2069.7,1.2086653]
[1773323454656,1.14762512,2070.5,2069.7,0.00398805]
[1773323454864,6.06790518,2070.8,2069.2,1.20467725]
[1773323454865,1.14762512,2070.2,2069.2,1.20467725]
[1773323455164,1.14762512,2069.9,2068.7,1.20467725]
[1773323455558,1.14762512,2069.9,2068.4,1.20467725]
[1773323455559,1.14762512,2069.6,2068.4,1.20467725]
[1773323455759,1.15320866,2069.6,2068.4,1.20919504]
[1773323455961,1.15320866,2069.6,2068.4,0.00451779]
[1773323456156,1.14762512,2069.4,2068.4,0.00451779]
[1773323456362,1.14762512,2069.3,2068.4,1.20919504]
[1773323457763,1.14762512,2069.3,2068.4,0.00451779]
[1773323458162,1.14762512,2069.3,2068.4,1.20919504]
[1773323459365,1.14762512,2069.3,2068.4,0.00451779]
[1773323460460,1.14762512,2069.3,2068.4,1.20919504]
[1773323460970,1.15320866,2069.6,2068.4,1.45087504]
[1773323461463,0.00558354,2069.6,2068.7,1.20467725]
[1773323461766,1.14762512,2070.2,2069.1,1.20467725]
[1773323461967,1.14762512,2070.2,2069.3,1.20467725]
[1773323462166,1.14762512,2070.5,2069.3,1.20467725]
[1773323462367,1.14762512,2070.5,2069.5,1.20467725]
[1773323462568,0.00415922,2070.5,2069.7,1.20467725]
[1773323462964,1.14762512,2070.8,2069.9,1.20467725]
[1773323464061,1.1535485,2070.8,2069.9,1.20820256]
[1773323464267,1.1535485,2070.8,2069.9,0.00352531]
[1773323464563,1.14762512,2070.6,2069.1,1.20467725]
[1773323464762,1.14762512,2070.4,2069.1,1.20467725]
[1773323465370,1.14762512,2070.0,2068.8,1.20467725]
[1773323465575,1.14762512,2070.0,2068.8,1.20841071]
[1773323465969,1.14762512,2070.3,2068.9,1.44630725]
[1773323467772,1.14762512,2069.9,2068.8,0.00373346]
[1773323467970,1.14762512,2069.7,2068.8,0.00373346]
[1773323468476,1.14762512,2069.7,2068.8,1.20841071]
[1773323469577,1.38904512,2070.7,2069.3,1.20467725]
[1773323469968,1.38904512,2070.7,2068.9,1.20467725]
[1773323470173,1.14762512,2070.5,2068.9,1.20467725]
[1773323470576,1.14762512,2070.3,2068.9,1.20467725]
[1773323470873,1.14762512,2070.3,2069.0,0.24162]
[1773323471074,1.14762512,2070.3,2069.1,1.20467725]
[1773323471876,7.21117784,2070.3,2069.1,1.20467725]
[1773323472071,1.14762512,2070.2,2069.1,1.20467725]
[1773323472475,1.14762512,2070.2,2068.9,1.20467725]
[1773323472674,0.24146,2070.4,2068.9,1.20467725]
[1773323472675,1.14762512,2070.1,2068.9,1.20467725]
[1773323473075,1.14762512,2070.0,2068.9,1.20467725]
[1773323474380,1.14762512,2070.0,2068.9,1.44630725]
[1773323474680,1.14762512,2070.0,2068.9,1.20467725]
[1773323474882,1.38913512,2070.0,2068.8,0.00373346]
[1773323475077,1.38913512,2070.0,2068.0,2.6475483]
[1773323475078,1.14762512,2069.3,2068.2,1.20467725]
[1773323475879,1.14762512,2069.3,2068.4,1.20467725]
[1773323476278,1.15227378,2069.3,2068.4,1.20914475]
[1773323476480,1.15227378,2069.3,2068.4,0.0044675]
[1773323477282,1.14762512,2068.9,2067.8,1.20467725]
[1773323477783,1.14762512,2069.0,2068.0,1.20467725]
[1773323477977,1.14762512,2069.0,2068.1,0.24173]
[1773323478178,1.14762512,2069.0,2068.1,0.00402025]
[1773323479281,1.14762512,2069.2,2068.3,1.20467725]
[1773323479488,0.00464866,2069.3,2068.5,1.20467725]
[1773323480384,1.11550018,2069.7,2068.5,1.20467725]
[1773323481084,1.11550018,2069.7,2068.7,1.13604133]
[1773323481282,0.00611486,2069.7,2068.9,1.37783133]
[1773323481582,1.11550018,2070.0,2069.2,1.13604133]
[1773323481985,1.11550018,2070.0,2069.0,1.62326133]
[1773323482283,1.11550018,2070.0,2069.1,1.38037133]
[1773323482485,1.1201808,2070.0,2069.1,1.13604133]
[1773323482880,1.1201808,2070.0,2069.1,1.38015133]
[1773323483286,1.11550018,2070.5,2069.3,1.13604133]
[1773323483481,1.11550018,2070.5,2069.4,1.37761133]
[1773323483889,1.11550018,2070.5,2069.4,1.61917133]
[1773323484184,0.87372018,2070.5,2069.8,0.24153]
[1773323484380,1.11550018,2071.1,2070.1,1.13604133]
[1773323484578,1.12124685,2071.1,2070.1,1.13604133]
[1773323484878,1.12124685,2071.1,2070.1,0.00408561]
[1773323485082,1.12124685,2071.1,2070.1,1.14012694]
[1773323485386,0.00574667,2071.1,2070.3,1.13604133]
[1773323485586,1.12124685,2071.1,2070.3,1.13604133]
[1773323485984,1.12124685,2071.1,2070.1,1.14012694]
[1773323486184,1.12124685,2071.1,2070.1,0.00408561]
[1773323486683,1.12124685,2071.1,2070.1,1.14012694]
[1773323490293,1.11550018,2070.9,2069.6,1.13604133]
[1773323490493,1.11550018,2070.9,2069.8,1.13604133]
[1773323491386,1.35690018,2070.9,2069.8,0.00514785]
[1773323491594,1.11550018,2070.7,2069.8,0.00514785]
[1773323491890,1.11550018,2070.7,2069.1,0.2416]
[1773323491891,1.11550018,2070.5,2069.1,1.13604133]
[1773323492288,1.11550018,2070.4,2069.1,1.13604133]
[1773323492487,1.11550018,2070.3,2069.1,1.13604133]
[1773323492696,1.11550018,2070.3,2069.1,1.13987419]
[1773323492993,11.94023243,2071.1,2069.3,1.13604133]
[1773323492994,1.11550018,2070.7,2069.3,1.13604133]
[1773323493193,1.11550018,2070.6,2069.3,1.13604133]
[1773323494295,1.11550018,2070.4,2069.1,1.13987419]
[1773323494494,1.11550018,2070.2,2069.1,0.00383286]
[1773323494691,1.35699018,2070.1,2069.1,0.00383286]
[1773323496987,1.11550018,2069.9,2068.5,1.13604133]
[1773323497395,1.11550018,2069.9,2068.6,1.37771133]
[1773323498199,1.11550018,2069.9,2068.6,1.38111627]
[1773323499287,1.11550018,2070.4,2069.1,1.13604133]
[1773323499493,1.11550018,2070.3,2069.3,1.13604133]
[1773323499701,1.11550018,2070.2,2068.8,1.13604133]
[1773323499893,1.11550018,2070.1,2068.8,1.13604133]
[1773323500091,1.11550018,2069.9,2068.6,1.13944627]
[1773323500292,1.11550018,2069.5,2068.6,0.00340494]
[1773323500594,1.11550018,2069.5,2068.3,1.13604133]
[1773323500595,0.2416,2069.2,2068.0,1.13604133]
[1773323500795,1.11550018,2069.0,2068.0,1.13604133]
[1773323501690,1.11550018,2069.0,2068.0,1.14179682]
[1773323502896,6.962,2069.1,2068.0,1.14179682]
[1773323503095,1.1691861,2069.0,2068.0,1.14179682]
[1773323505398,1.1691861,2069.0,2068.0,0.00575549]
[1773323506198,1.1691861,2068.8,2067.7,1.20034843]
[1773323507498,1.1691861,2068.8,2067.7,1.44561949]
[1773323507899,1.1691861,2068.8,2067.7,1.20384949]
[1773323508094,3.51444311,2068.8,2067.7,0.00350106]
[1773323508301,1.1691861,2068.7,2067.7,0.00350106]
[1773323508604,1.1691861,2068.7,2067.7,1.20384949]
[1773323510607,1.08618107,2069.1,2067.9,1.15073908]
[1773323510805,1.08618107,2069.1,2068.1,1.15073908]
[1773323517909,1.08618107,2069.1,2067.9,1.39444062]
[1773323518211,1.08618107,2068.7,2067.7,1.15424014]
[1773323519208,1.08618107,2068.7,2067.7,1.39566784]
[1773323520323,1.08618107,2068.5,2067.7,0.00350106]
[1773323520811,1.08618107,2068.5,2067.7,1.15424014]
[1773323521011,1.08618107,2068.5,2067.7,0.00350106]
[1773323521217,1.08618107,2068.5,2067.2,1.15073908]
[1773323521415,1.08618107,2068.4,2067.2,1.63481909]
[1773323521610,1.08618107,2068.4,2067.3,1.15073908]
[1773323521813,1.08618107,2068.2,2067.3,1.15073908]
[1773323522011,1.08618107,2068.2,2067.1,1.25073908]
[1773323522211,1.08618107,2068.0,2067.1,0.10558441]
[1773323522412,1.09216347,2068.0,2067.1,1.25632349]
[1773323523120,1.08618107,2067.8,2066.4,1.39447177]
[1773323523319,1.08618107,2067.5,2066.4,1.39447177]
[1773323523824,1.08618107,2067.3,2066.2,1.15073908]
[1773323524323,1.08618107,2067.1,2066.2,0.00556529]
[1773323524720,1.08618107,2067.1,2066.2,1.15630437]
[1773323526317,1.08618107,2067.7,2066.3,0.24194]
[1773323526522,4.0188778,2067.8,2066.4,1.15073908]
[1773323526523,1.08618107,2067.6,2066.4,1.15073908]
[1773323526825,1.08618107,2067.6,2066.6,1.15073908]
[1773323527819,1.08618107,2067.9,2066.6,1.15073908]
[1773323528123,1.08618107,2067.7,2066.6,1.15073908]
[1773323529420,1.08618107,2067.7,2066.3,1.15073908]
[1773323529626,1.08618107,2067.7,2066.3,1.39266908]
[1773323530023,1.08618107,2067.5,2066.3,1.15073908]
[1773323530616,1.08618107,2067.1,2066.3,1.15073908]
[1773323530825,1.08618107,2067.1,2066.2,0.00556529]
[1773323531721,1.08618107,2067.1,2066.2,1.15630437]
[1773323531923,1.08618107,2067.5,2066.2,1.15630437]
[1773323532328,1.08618107,2067.3,2066.2,1.15630437]
[1773323532831,1.08618107,2067.3,2066.2,1.39865437]
[1773323533030,1.08618107,2067.3,2066.2,1.15630437]
[1773323533227,6.969,2067.7,2066.2,1.15630437]
[1773323533228,1.08618107,2067.1,2066.2,1.15630437]
[1773323533427,1.08618107,2067.1,2066.2,0.00556529]
[1773323534633,1.08618107,2067.1,2066.2,1.15630437]
[1773323536633,1.08618107,2067.1,2066.2,0.00556529]
[1773323537732,1.08618107,2067.6,2066.2,1.39824437]
[1773323538530,1.08618107,2067.6,2066.2,7.10824437]
[1773323538735,1.09216347,2068.0,2066.9,1.15073908]
[1773323539136,1.09216347,2068.0,2066.9,1.39326908]
[1773323539335,1.09216347,2068.0,2066.9,1.15073908]
[1773323539536,1.09216347,2068.0,2067.0,1.39259908]
[1773323539737,1.09216347,2068.0,2067.0,1.15073908]
[1773323540630,1.33391347,2068.0,2066.6,1.19366131]
[1773323540939,1.16314477,2067.9,2066.8,1.19366131]
[1773323541630,1.16314477,2067.7,2066.3,1.19366131]
[1773323543432,1.16314477,2067.7,2066.3,1.43278493]
[1773323543634,1.16314477,2067.7,2066.7,1.19366131]
[1773323546636,1.16314477,2067.5,2066.4,1.19366131]
[1773323546935,1.16314477,2067.1,2066.2,0.00556529]
[1773323547239,1.16314477,2066.9,2065.9,1.19366131]
[1773323547435,1.16314477,2066.7,2065.7,1.19366131]
[1773323547642,1.16314477,2066.5,2065.1,0.24207]
[1773323547942,1.16314477,2066.5,2065.2,1.19366131]
[1773323548138,1.16314477,2066.1,2065.2,1.19366131]
[1773323548442,1.16681439,2066.1,2065.2,1.19859015]
[1773323550141,0.00366962,2066.1,2065.2,1.44332015]
[1773323550344,1.16314477,2066.5,2065.6,1.19366131]
[1773323550743,1.16314477,2066.5,2065.6,1.43844131]
[1773323551351,1.16910381,2066.5,2065.6,1.19366131]
[1773323551740,1.16910381,2066.5,2065.3,1.19366131]
[1773323553042,1.16314477,2066.4,2065.3,1.19366131]
[1773323553247,1.16910381,2066.5,2065.3,1.19366131]
[1773323554846,1.16314477,2066.3,2065.3,1.19366131]
[1773323555051,1.16314477,2066.3,2065.2,0.00492884]
[1773323555052,1.16314477,2066.1,2065.2,1.19859015]
[1773323555351,1.16314477,2066.0,2065.2,0.00492884]
[1773323555648,1.16314477,2065.8,2064.8,1.19366131]
[1773323555844,1.16314477,2065.6,2064.8,1.19366131]
[1773323556338,1.16314477,2065.6,2064.3,1.19366131]
[1773323556748,1.16314477,2065.6,2064.5,1.43637131]
[1773323556949,1.16314477,2065.6,2064.5,1.43611131]
[1773323557141,1.16314477,2066.1,2064.7,1.19366131]
[1773323557346,1.16314477,2066.1,2064.9,1.19366131]
[1773323557540,1.16314477,2066.1,2065.1,1.19366131]
[1773323557745,8.13714477,2066.4,2065.1,1.44672131]
[1773323557945,1.16314477,2066.3,2065.1,1.19366131]
[1773323558145,1.16314477,2066.3,2065.1,1.44397131]
[1773323558349,1.16910381,2066.5,2065.3,1.44631131]
[1773323558549,1.16910381,2066.5,2065.5,1.19366131]
[1773323559038,1.16910381,2066.5,2065.5,1.43700131]
[1773323559244,1.16910381,2066.5,2065.5,1.19366131]
[1773323559549,1.16910381,2066.5,2065.5,1.43814131]
[1773323559945,1.16910381,2066.5,2065.5,1.44965131]
[1773323560247,1.41102381,2066.5,2065.5,1.19366131]
[1773323560549,1.41102381,2066.5,2065.2,1.19366131]
[1773323560852,0.00595904,2066.5,2065.4,1.19366131]
[1773323561146,1.16910381,2066.5,2065.4,1.19366131]
[1773323561347,1.16910381,2066.5,2065.4,1.43900131]
[1773323561541,1.16910381,2066.5,2065.4,1.44194131]
[1773323561751,1.16910381,2066.5,2065.4,1.19366131]
[1773323561947,1.16910381,2066.5,2065.4,1.43845131]
[1773323562448,1.16910381,2066.5,2065.4,1.43568131]
[1773323563246,1.16910381,2066.5,2065.4,1.44196131]
[1773323563646,1.16910381,2066.5,2065.4,1.19366131]
[1773323563849,1.11819314,2066.3,2065.1,1.17003195]
[1773323564451,1.11819314,2066.3,2064.8,0.24211]
[1773323564452,1.11819314,2066.1,2064.9,1.17003195]
[1773323564650,1.11819314,2065.9,2064.9,1.41637195]
[1773323564849,1.11819314,2065.9,2064.9,1.17003195]
[1773323565246,1.11819314,2065.9,2064.9,1.41369195]
[1773323565553,1.11819314,2065.9,2064.9,1.17003195]
[1773323568247,1.11819314,2066.1,2065.1,1.17003195]
[1773323569955,1.11819314,2066.1,2064.7,1.17003195]
[1773323570466,6.974,2066.2,2064.3,0.00481756]
[1773323570467,1.13882356,2065.3,2064.3,0.00481756]
[1773323570751,1.13882356,2064.6,2063.6,1.13092234]
[1773323571355,1.13882356,2064.8,2063.8,1.13092234]
[1773323571656,1.13882356,2064.8,2063.8,1.1363989]
[1773323571953,1.14260249,2064.8,2063.8,1.1363989]
[1773323573558,1.14260249,2064.8,2063.8,1.3836089]
[1773323573958,0.00377893,2064.8,2063.8,1.3836089]